bitfinex-derivatives/quotes_ETHF0:USTF0_20250524
["timestamp","ask_amount","ask_price","bid_price","bid_amount"]
[1748117069941,5.1399,2552.5,2552.4,0.78921051]
[1748117075755,5.21539626,2552.5,2552.4,0.78921051]
[1748117077754,4.43209626,2552.5,2552.4,0.78921051]
[1748117077950,5.21539626,2552.5,2552.4,0.78921051]
[1748117083360,5.21539626,2552.5,2552.4,1.33831708]
[1748117084848,5.21539626,2552.5,2552.4,0.55498708]
[1748117085056,0.78349,2551.9,2551.8,0.72812071]
[1748117085761,3.39579,2551.9,2551.8,1.51164071]
[1748117085955,2.6123,2551.9,2551.8,0.78352]
[1748117086353,3.39579,2551.9,2551.8,0.78352]
[1748117088158,0.78353,2551.8,2551.6,2.08842031]
[1748117088365,0.78353,2551.8,2551.7,0.78353]
[1748117088956,1.317,2551.9,2551.6,2.08842031]
[1748117089163,2.1005,2551.9,2551.8,0.78352]
[1748117090061,0.78353,2551.8,2551.7,0.78353]
[1748117096469,1.39249626,2551.9,2551.6,2.08842031]
[1748117096470,2.17599626,2551.9,2551.8,0.78352]
[1748117098167,0.78355,2551.8,2551.7,0.78353]
[1748117100275,0.78355,2551.8,2551.7,2.09573]
[1748117100768,0.78355,2551.8,2551.6,0.68922031]
[1748117100769,0.78355,2551.7,2551.6,0.68922031]
[1748117100975,0.78367,2551.3,2551.2,0.72812071]
[1748117101475,0.78367,2551.3,2551.2,0.7837]
[1748117102777,18.9527,2551.5,2550.9,4.58762071]
[1748117102970,0.78375,2551.1,2551.0,0.78376]
[1748117105178,0.78371,2551.2,2551.1,0.78371]
[1748117105979,0.78373,2551.1,2551.0,2.18645]
[1748117107179,0.78373,2551.1,2551.0,0.78375]
[1748117107671,2.19422,2551.2,2551.1,0.78373]
[1748117108074,19.82922,2551.2,2551.1,0.78373]
[1748117108275,0.78373,2551.1,2551.0,2.19494]
[1748117108475,0.07549626,2551.3,2551.1,0.78373]
[1748117108775,0.07549626,2551.3,2551.2,3.9915]
[1748117108980,0.07549626,2551.3,2551.2,19.0085]
[1748117109179,2.34608945,2551.6,2551.5,0.78361]
[1748117109980,21.62732,2551.8,2551.7,0.78355]
[1748117110383,18.41952,2551.8,2551.7,0.78355]
[1748117110686,2.1092,2551.9,2551.8,0.78352]
[1748117110985,3.13540996,2552.1,2552.0,0.78346]
[1748117111184,0.78347,2552.0,2551.9,0.78347]
[1748117111576,2.08657,2552.0,2551.9,0.78347]
[1748117111778,0.78349,2551.9,2551.8,0.7835]
[1748117112385,0.00588051,2552.1,2552.0,0.78346]
[1748117112583,0.00588051,2552.1,2552.0,1.34398136]
[1748117113078,0.00588051,2552.1,2552.0,2.68558136]
[1748117113683,0.00588051,2552.1,2552.0,2.68641457]
[1748117114284,0.00588051,2552.1,2552.0,2.68585243]
[1748117115371,0.00588051,2552.1,2552.0,2.68592711]
[1748117116379,0.78931051,2552.1,2552.0,1.90246711]
[1748117116885,0.78931051,2552.1,2552.0,2.68592711]
[1748117117183,0.78931051,2552.1,2552.0,2.68582959]
[1748117117382,0.78931051,2552.1,2552.0,1.90236959]
[1748117118584,0.78931051,2552.1,2552.0,2.68582959]
[1748117118977,0.78931051,2552.1,2552.0,2.68088431]
[1748117119386,0.86480677,2552.1,2552.0,2.68088431]
[1748117119791,0.86480677,2552.1,2552.0,0.55582431]
[1748117120680,0.78346,2552.0,2551.9,1.48619]
[1748117120885,2.17656,2552.0,2551.9,2.03686781]
[1748117121888,1.3931,2552.0,2551.9,2.03686781]
[1748117122492,1.3931,2552.0,2551.9,2.03660588]
[1748117123189,1.3931,2552.0,2551.9,3.42920588]
[1748117124193,1.3931,2552.0,2551.9,3.42916444]
[1748117124692,2.17656,2552.0,2551.9,2.64567444]
[1748117124892,2.17656,2552.0,2551.9,1.25307444]
[1748117125786,2.17656,2552.0,2551.9,0.7027]
[1748117126092,2.17656,2552.0,2551.9,1.25304018]
[1748117126282,2.17656,2552.0,2551.9,2.03653018]
[1748117126789,1.3931,2552.0,2551.9,2.03653018]
[1748117127186,1.3931,2552.0,2551.9,3.38963018]
[1748117127794,2.17656,2552.0,2551.9,3.38955785]
[1748117129899,1.3931,2552.0,2551.9,3.38955785]
[1748117131894,2.17656,2552.0,2551.9,3.38955785]
[1748117132289,1.3931,2552.0,2551.9,3.38955785]
[1748117132996,2.17656,2552.0,2551.9,3.38955785]
[1748117133999,1.3931,2552.0,2551.9,3.38955785]
[1748117134794,1.3931,2552.0,2551.9,3.38999084]
[1748117135300,2.17656,2552.0,2551.9,3.38999084]
[1748117135601,1.46859626,2552.0,2551.9,3.38999084]
[1748117136096,2.25205626,2552.0,2551.9,3.38999084]
[1748117136300,2.25205626,2552.0,2551.9,0.55070084]
[1748117136605,1.46859626,2552.0,2551.9,0.55121174]
[1748117136795,2.25205626,2552.0,2551.9,0.55121174]
[1748117138500,0.78361,2551.5,2551.4,0.6898]
[1748117138706,0.78361,2551.5,2551.4,1.47344]
[1748117138901,0.78364,2551.4,2551.3,15.7056]
[1748117139103,3.2078,2551.6,2551.1,0.72812071]
[1748117139396,3.2078,2551.6,2551.1,1.51185071]
[1748117139397,0.7837,2551.2,2551.1,1.51185071]
[1748117139800,2.1986,2551.2,2551.1,1.51185071]
[1748117140709,1.4149,2551.2,2551.1,1.51185071]
[1748117140908,1.4149,2551.2,2551.1,0.78373]
[1748117141208,2.34722863,2551.4,2551.3,0.78367]
[1748117141508,2.34722863,2551.4,2551.3,3.99147]
[1748117141904,2.34722863,2551.8,2551.7,0.78355]
[1748117142198,3.70462863,2551.8,2551.7,0.78355]
[1748117142413,4.48814863,2551.8,2551.7,0.78355]
[1748117142604,3.70462863,2551.8,2551.7,1.34370662]
[1748117142906,4.48814863,2551.8,2551.7,1.34370662]
[1748117143212,2.14092,2551.8,2551.7,1.34370662]
[1748117143609,2.14092,2551.8,2551.7,1.34439072]
[1748117145513,2.14092,2551.8,2551.7,1.34439418]
[1748117146007,2.14092,2551.8,2551.7,0.56084418]
[1748117147110,0.78355,2551.7,2551.6,0.78357]
[1748117147311,2.19295,2551.7,2551.6,1.344454]
[1748117147613,1.4094,2551.7,2551.6,1.344454]
[1748117148212,2.19295,2551.7,2551.6,1.344454]
[1748117149010,2.19295,2551.7,2551.6,1.34442917]
[1748117150913,2.26844626,2551.7,2551.6,1.34442917]
[1748117152611,2.26844626,2551.7,2551.6,1.34446532]
[1748117154418,2.26844626,2551.7,2551.6,1.34450804]
[1748117155420,1.48489626,2551.7,2551.6,1.34450804]
[1748117155619,2.26844626,2551.7,2551.6,1.34450804]
[1748117156020,2.26844626,2551.7,2551.6,1.34453453]
[1748117157814,2.26844626,2551.7,2551.6,1.34461769]
[1748117158310,2.26844626,2551.7,2551.6,2.01211769]
[1748117159527,2.26844626,2551.7,2551.6,2.01216905]
[1748117161222,1.48489626,2551.7,2551.6,2.01171317]
[1748117162211,2.26844626,2551.7,2551.6,2.01171317]
[1748117163115,2.26844626,2551.7,2551.6,2.01183007]
[1748117163422,0.07549626,2551.7,2551.6,2.01183007]
[1748117164120,4.44694914,2552.1,2552.0,0.78346]
[1748117164121,3.66350914,2552.1,2552.0,0.78346]
[1748117164323,3.66350914,2552.1,2552.0,1.34422007]
[1748117164925,1.31628051,2552.1,2552.0,1.34422007]
[1748117165123,1.31628051,2552.1,2552.0,2.65972007]
[1748117166420,2.09971051,2552.1,2552.0,1.3155]
[1748117166617,2.09971051,2552.1,2552.0,1.87627451]
[1748117166818,2.09971051,2552.1,2552.0,2.65973451]
[1748117167318,1.31628051,2552.1,2552.0,2.65973451]
[1748117167519,2.09971051,2552.1,2552.0,2.65973451]
[1748117168318,1.31628051,2552.1,2552.0,2.6596096]
[1748117168520,2.09971051,2552.1,2552.0,2.6596096]
[1748117169620,2.09971051,2552.1,2552.0,2.65852958]
[1748117170120,2.09971051,2552.1,2552.0,0.55956958]
[1748117173428,0.78358,2551.7,2551.6,0.78358]
[1748117173628,0.78358,2551.7,2551.6,1.33839234]
[1748117174233,0.85907626,2551.7,2551.6,1.33839234]
[1748117174431,0.07549626,2551.7,2551.6,1.33839234]
[1748117174628,1.48419626,2551.7,2551.6,1.33839234]
[1748117175630,2.26774626,2551.7,2551.6,1.33839234]
[1748117175829,2.26774626,2551.7,2551.6,0.55481234]
[1748117177032,2.26774626,2551.7,2551.6,1.33847331]
[1748117177233,2.26774626,2551.7,2551.6,0.55489331]
[1748117177728,19.90174626,2551.7,2551.6,0.55489331]
[1748117178734,19.90174626,2551.7,2551.6,1.33864151]
[1748117180527,20.58594626,2551.7,2551.6,1.33863666]
[1748117181935,20.58594626,2551.7,2551.6,0.55505666]
[1748117182338,0.78358,2551.6,2551.5,1.4301]
[1748117182538,2.17708,2551.6,2551.5,1.33866669]
[1748117182739,2.17708,2551.6,2551.5,0.55506669]
[1748117183035,5.38488,2551.6,2551.5,0.55506669]
[1748117184037,0.78367,2551.3,2551.2,3.2078]
[1748117184336,0.78367,2551.3,2551.2,3.75806463]
[1748117185043,2.87907,2551.3,2551.2,3.75806463]
[1748117185937,2.87907,2551.3,2551.2,0.54950033]
[1748117186932,0.78373,2551.1,2551.0,4.63545]
[1748117187529,2.14643,2551.1,2551.0,3.8517]
[1748117187933,0.7838,2550.9,2550.8,1.4537]
[1748117188135,0.7838,2550.9,2550.8,1.3516]
[1748117189041,0.7838,2550.9,2550.8,2.13543]
[1748117195543,0.85929626,2550.9,2550.8,2.13543]
[1748117197137,0.07549626,2550.9,2550.8,2.13543]
[1748117197544,0.78375,2551.1,2550.8,2.6342]
[1748117197745,0.78375,2551.1,2551.0,0.78376]
[1748117198137,0.78376,2551.0,2550.9,2.11968]
[1748117200241,0.78376,2551.0,2550.9,1.3359]
[1748117202245,0.78376,2551.0,2550.9,2.1197]
[1748117202652,0.78376,2551.0,2550.9,1.3359]
[1748117203451,2.16206,2551.0,2550.9,1.3359]
[1748117203652,2.16206,2551.0,2550.9,2.1197]
[1748117204953,2.16206,2551.0,2550.9,1.3359]
[1748117207756,2.16206,2551.0,2550.9,2.1197]
[1748117209956,2.16206,2551.0,2550.9,1.3359]
[1748117211057,2.16206,2551.0,2550.9,2.1197]
[1748117211950,2.23755626,2551.0,2550.9,2.1197]
[1748117212555,1.45379626,2551.0,2550.9,2.1197]
[1748117212752,2.34624796,2551.1,2551.0,0.78376]
[1748117212945,2.34624796,2551.1,2551.0,5.28746]
[1748117213147,2.34624796,2551.1,2551.0,5.83664937]
[1748117214053,3.12989796,2551.4,2551.3,0.78367]
[1748117214255,3.12989796,2551.4,2551.3,1.33294673]
[1748117215456,3.12989796,2551.4,2551.3,2.62884673]
[1748117216554,2.34624796,2551.4,2551.3,6.12454884]
[1748117217056,0.78363,2551.5,2551.4,0.78364]
[1748117217256,0.78363,2551.5,2551.4,2.95111884]
[1748117217447,2.1913,2551.6,2551.5,0.78361]
[1748117217652,2.1913,2551.6,2551.5,1.33233919]
[1748117217857,2.1913,2551.6,2551.5,0.54872919]
[1748117218155,2.1913,2551.6,2551.5,1.33233919]
[1748117219465,2.1913,2551.6,2551.5,1.33200262]
[1748117220564,2.1913,2551.6,2551.5,0.54839262]
[1748117221253,0.78361,2551.5,2551.4,2.81033]
[1748117221461,2.18431,2551.5,2551.4,3.35875996]
[1748117221662,1.4007,2551.5,2551.4,3.35875996]
[1748117222660,17.64,2551.7,2551.6,0.78358]
[1748117222661,0.78357,2551.7,2551.6,0.78358]
[1748117222862,2.09837,2551.7,2551.6,1.3320106]
[1748117223068,5.62954422,2551.9,2551.6,0.5484306]
[1748117223261,5.62954422,2551.9,2551.8,0.78352]
[1748117223457,5.62954422,2551.9,2551.8,1.3319506]
[1748117223662,6.41303422,2551.9,2551.8,2.7393506]
[1748117223966,6.33753796,2551.9,2551.8,2.7393506]
[1748117224159,7.65233796,2551.9,2551.8,2.7393506]
[1748117224664,5.30609,2551.9,2551.8,2.73889807]
[1748117225166,2.09829,2551.9,2551.8,2.73889807]
[1748117225863,1.3148,2551.9,2551.8,2.73889807]
[1748117226365,4.60332336,2552.0,2551.9,0.78349]
[1748117226566,1.35208051,2552.1,2552.0,0.78346]
[1748117226865,1.35208051,2552.1,2552.0,2.67913807]
[1748117228161,2.13552051,2552.1,2552.0,1.89567807]
[1748117228667,2.13552051,2552.1,2552.0,2.67913807]
[1748117230078,2.13552051,2552.1,2552.0,2.67858486]
[1748117231579,2.13552051,2552.1,2552.0,1.89512486]
[1748117231773,2.13552051,2552.1,2552.0,1.89500449]
[1748117232178,2.13552051,2552.1,2552.0,1.3477]
[1748117232377,2.13552051,2552.1,2552.0,3.45506]
[1748117232580,2.13552051,2552.1,2552.0,2.6716]
[1748117233079,2.13552051,2552.1,2552.0,3.45506]
[1748117233281,2.13552051,2552.1,2552.0,2.6716]
[1748117233581,2.13552051,2552.1,2552.0,3.45506]
[1748117235082,2.13552051,2552.1,2552.0,2.6716]
[1748117235983,2.13552051,2552.1,2552.0,3.45506]
[1748117235984,1.35208051,2552.1,2552.0,3.45506]
[1748117236185,0.00588051,2552.1,2552.0,3.45506]
[1748117236382,0.00588051,2552.1,2551.6,3.2078]
[1748117236584,0.7835,2551.9,2551.8,0.7835]
[1748117237280,0.7835,2551.9,2551.7,0.6961]
[1748117237281,1.45918,2552.0,2551.9,0.78349]
[1748117238783,0.6757,2552.0,2551.9,0.78349]
[1748117243891,0.00588051,2552.1,2552.0,0.78346]
[1748117244383,0.00588051,2552.1,2552.0,5.78346]
[1748117244585,5.1e-07,2552.1,2552.0,5.78346]
[1748117244785,5.1e-07,2552.1,2552.0,7.13786]
[1748117245387,5.1e-07,2552.1,2552.0,7.83736]
[1748117245989,5.1e-07,2552.1,2552.0,8.3834759]
[1748117246491,5.1e-07,2552.1,2552.0,9.11159661]
[1748117247689,5.1e-07,2552.1,2552.0,9.11147483]
[1748117248290,5.1e-07,2552.1,2552.0,9.83647483]
[1748117249391,5.1e-07,2552.1,2552.0,9.83652106]
[1748117250292,3.67244796,2552.9,2552.8,0.78321]
[1748117250493,3.67244796,2552.9,2552.8,1.32925035]
[1748117251292,4.45562796,2552.9,2552.8,1.32925035]
[1748117251894,2.10938,2552.9,2552.8,1.32925035]
[1748117252192,1.3262,2552.9,2552.8,1.32925035]
[1748117253994,2.6816,2552.9,2552.8,1.32925035]
[1748117254593,2.75709626,2552.9,2552.8,1.32858402]
[1748117256699,3.54027626,2552.9,2552.8,1.32858402]
[1748117256999,2.11029626,2552.9,2552.8,1.32858402]
[1748117257199,1.43089626,2552.9,2552.8,1.32858402]
[1748117258192,1.43089626,2552.9,2552.8,0.78321]
[1748117258399,2.21407626,2552.9,2552.8,0.78321]
[1748117262001,2.21409626,2552.9,2552.8,0.78321]
[1748117266502,1.43089626,2552.9,2552.8,0.78321]
[1748117268610,2.21407626,2552.9,2552.8,0.78321]
[1748117269197,1.43089626,2552.9,2552.6,3.2078]
[1748117269402,2.0139,2552.8,2552.7,0.78324]
[1748117269703,3.43681,2552.8,2552.7,0.78324]
[1748117275705,2.6536,2552.8,2552.7,0.78324]
[1748117276102,1.32,2552.8,2552.7,0.78324]
[1748117279711,1.32,2552.8,2552.7,1.44724]
[1748117280914,2.10321,2552.8,2552.7,1.44724]
[1748117285908,1.32,2552.8,2552.5,0.72812071]
[1748117286112,3.99107,2552.6,2552.5,0.72812071]
[1748117286509,5.99217,2552.6,2552.5,0.72812071]
[1748117286709,10.99217,2552.6,2552.5,0.72812071]
[1748117287822,0.7834,2552.2,2552.1,0.725]
[1748117288020,0.7834,2552.2,2552.0,3.99125]
[1748117288316,1.3151,2552.1,2551.9,20.35130071]
[1748117288520,0.78346,2552.0,2551.9,19.56782071]
[1748117288816,1.43186,2552.0,2551.8,0.67908001]
[1748117289006,1.3151,2551.9,2551.8,2.10550001]
[1748117290013,0.78346,2552.0,2551.9,0.78349]
[1748117290215,0.78346,2552.0,2551.9,2.10849]
[1748117290519,0.78346,2552.0,2551.9,1.325]
[1748117290720,0.78346,2552.0,2551.9,0.78349]
[1748117292321,1.281,2552.1,2551.8,1.32198001]
[1748117292322,0.78349,2551.9,2551.8,2.10548001]
[1748117292526,0.78349,2551.9,2551.8,0.64878001]
[1748117292822,0.78348,2552.0,2551.9,0.78348]
[1748117293828,0.78349,2551.9,2551.8,0.78939001]
[1748117294922,0.78349,2551.9,2551.8,0.00588001]
[1748117296117,3.38569,2551.9,2551.8,0.00588001]
[1748117296326,8.38569,2551.9,2551.8,0.00588001]
[1748117301224,8.46118626,2551.9,2551.8,0.00588001]
[1748117301430,3.46118626,2551.9,2551.8,0.00588001]
[1748117302726,3.46118626,2551.9,2551.8,0.78940001]
[1748117303025,19.77958626,2551.9,2551.8,0.00588001]
[1748117305230,19.77958626,2551.9,2551.8,0.68118001]
[1748117308230,2.14558626,2551.9,2551.8,0.68118001]
[1748117308533,19.77958626,2551.9,2551.8,0.68118001]
[1748117309130,19.77958626,2551.9,2551.8,2.01838001]
[1748117313435,19.70409,2551.9,2551.8,2.01838001]
[1748117314529,19.77958626,2551.9,2551.8,2.01838001]
[1748117316637,0.85898626,2551.9,2551.8,2.01838001]
[1748117317638,2.24358626,2551.9,2551.8,2.01838001]
[1748117321841,4.58923466,2551.9,2551.8,2.01838001]
[1748117326039,4.58923466,2551.9,2551.8,0.68118001]
[1748117326244,1.95889,2551.7,2551.3,0.72812071]
[1748117326443,0.78364,2551.4,2551.3,1.38622071]
[1748117326645,0.78364,2551.4,2551.3,0.72812071]
[1748117326845,0.78367,2551.3,2551.2,0.6581]
[1748117327033,0.7837,2551.2,2551.1,3.8688]
[1748117327232,2.1409,2551.2,2551.1,3.8688]
[1748117328644,2.1409,2551.2,2551.1,0.661]
[1748117329335,2.1409,2551.2,2551.1,1.44473]
[1748117330754,2.21639626,2551.2,2551.1,1.44473]
[1748117333952,1.43269626,2551.2,2551.1,1.44473]
[1748117334652,2.21639626,2551.2,2551.1,0.661]
[1748117338452,2.21639626,2551.2,2551.1,1.44473]
[1748117338751,2.1409,2551.2,2551.1,0.661]
[1748117339457,2.1409,2551.2,2551.1,1.44473]
[1748117340352,2.1409,2551.2,2551.1,0.661]
[1748117340557,0.7838,2550.9,2550.8,18.9796]
[1748117340758,0.7838,2550.9,2550.8,4.6903]
[1748117341159,0.7838,2550.9,2550.8,3.9065]
[1748117341456,2.0159,2551.0,2550.5,18.1978]
[1748117341757,2.12765,2550.8,2550.6,1.51198071]
[1748117341959,1.3438,2550.7,2550.6,1.51198071]
[1748117342560,1.3438,2550.7,2550.6,0.78386]
[1748117345361,1.3438,2550.7,2550.6,3.99166]
[1748117345765,1.3438,2550.7,2550.6,0.78386]
[1748117345957,1.41929626,2550.7,2550.6,0.78386]
[1748117347171,2.20315626,2550.7,2550.6,0.78386]
[1748117347871,2.12766,2550.7,2550.6,0.78386]
[1748117349676,0.78389,2550.6,2550.5,18.4533]
[1748117349975,2.18289,2550.6,2550.5,18.4533]
[1748117350573,1.399,2550.6,2550.5,18.4533]
[1748117350871,2.18289,2550.6,2550.5,19.01230844]
[1748117351673,1.399,2550.6,2550.5,19.01230844]
[1748117351868,1.399,2550.6,2550.5,4.02230844]
[1748117354072,1.399,2550.6,2550.5,4.01820182]
[1748117354269,2.18289,2550.6,2550.5,1.89440182]
[1748117354573,2.18289,2550.6,2550.5,2.67832182]
[1748117356174,2.18289,2550.6,2550.5,0.55490182]
[1748117356976,4.5285384,2550.6,2550.5,0.55490182]
[1748117357668,0.78392,2550.5,2550.4,0.6966]
[1748117357868,2.10442,2550.5,2550.4,1.25187202]
[1748117358767,2.78552,2550.5,2550.4,1.25187202]
[1748117359578,2.3456484,2550.6,2550.5,0.78392]
[1748117359770,2.3456484,2550.6,2550.5,2.64678074]
[1748117360476,18.9906,2550.8,2550.7,0.78386]
[1748117360675,18.9906,2550.8,2550.7,1.33902074]
[1748117361065,1.3496,2550.8,2550.7,1.99502074]
[1748117361269,1.3496,2550.8,2550.7,1.98971561]
[1748117362278,2.13343,2550.8,2550.7,1.98971561]
[1748117362472,2.3456484,2551.1,2550.7,1.20585561]
[1748117362674,2.3456484,2551.1,2551.0,0.78376]
[1748117362873,2.3456484,2551.1,2551.0,1.33328161]
[1748117363071,2.3456484,2551.1,2551.0,7.70948161]
[1748117363272,0.00588051,2551.4,2551.3,0.78367]
[1748117363473,0.00588051,2551.4,2551.3,4.54099161]
[1748117363980,0.00588051,2551.4,2551.3,6.56399161]
[1748117364181,0.00588051,2551.4,2551.3,6.87346544]
[1748117364787,0.00588051,2551.4,2551.3,6.87409115]
[1748117367885,0.00588051,2551.4,2551.3,11.87409115]
[1748117368381,0.00588051,2551.4,2551.3,11.86870041]
[1748117368980,0.00588051,2551.4,2551.3,11.86855319]
[1748117370487,0.00588051,2551.4,2551.3,6.86855319]
[1748117371689,0.00588051,2551.4,2551.3,6.86782904]
[1748117372588,6.31962023,2552.1,2552.0,0.78346]
[1748117372779,7.73512023,2552.1,2552.0,1.33151523]
[1748117373485,7.73512023,2552.1,2552.0,1.33124307]
[1748117373986,8.51856023,2552.1,2552.0,0.54778307]
[1748117375178,8.51856023,2552.1,2552.0,0.78346]
[1748117375380,8.51856023,2552.1,2552.0,1.33088302]
[1748117375779,8.51856023,2552.1,2552.0,0.54742302]
[1748117376988,0.78346,2552.0,2551.9,0.78347]
[1748117377191,2.12696,2552.0,2551.9,1.33065435]
[1748117378586,2.12696,2552.0,2551.9,0.54718435]
[1748117380284,7.12696,2552.0,2551.9,0.54718435]
[1748117380485,0.78349,2551.9,2551.8,0.00588051]
[1748117380788,0.78349,2551.9,2551.8,0.55296931]
[1748117380789,2.06569,2551.9,2551.8,0.55296931]
[1748117381990,2.06569,2551.9,2551.8,0.00588051]
[1748117392493,4.4113384,2551.9,2551.8,0.00588051]
[1748117392694,4.48683466,2551.9,2551.8,0.00588051]
[1748117393595,4.4113384,2551.9,2551.8,0.00588051]
[1748117394697,4.4113384,2551.9,2551.8,0.78940051]
[1748117394698,3.6278484,2551.9,2551.8,0.78940051]
[1748117394991,2.3456484,2551.9,2551.8,1.0818717]
[1748117395197,2.3456484,2551.9,2551.8,3.1029717]
[1748117396192,2.3456484,2551.9,2551.8,3.66192252]
[1748117396398,0.78346,2552.0,2551.9,0.78349]
[1748117396593,2.14646,2552.0,2551.9,2.95501201]
[1748117398393,2.14646,2552.0,2551.9,2.95564197]
[1748117400000,1.363,2552.0,2551.9,2.95560107]
[1748117400197,0.78345,2552.1,2552.0,0.78346]
[1748117400403,2.1457,2552.2,2552.1,0.78343]
[1748117400701,2.1457,2552.2,2552.1,3.63454107]
[1748117400993,1.3623,2552.2,2552.1,3.63454107]
[1748117401698,2.1457,2552.2,2552.1,3.34219037]
[1748117401901,2.1457,2552.2,2552.1,3.63445926]
[1748117403100,1.3623,2552.2,2552.1,3.63394085]
[1748117403504,1.3623,2552.2,2552.1,3.63376046]
[1748117404105,2.1457,2552.2,2552.1,3.63376046]
[1748117405106,1.3623,2552.2,2552.1,3.63376046]
[1748117406408,2.1457,2552.2,2552.1,3.63376046]
[1748117406809,2.1457,2552.2,2552.1,2.85033046]
[1748117407011,2.1457,2552.2,2552.1,0.55912204]
[1748117407311,2.8565,2552.2,2552.1,0.55912204]
[1748117410511,0.78343,2552.1,2552.0,1.3442]
[1748117410705,2.12773,2552.1,2552.0,1.90311292]
[1748117411409,2.12773,2552.1,2552.0,0.55891292]
[1748117411605,2.78883,2552.1,2552.0,0.55891292]
[1748117412101,7.78883,2552.1,2552.0,0.55891292]
[1748117412412,2.78883,2552.1,2552.0,0.55891292]
[1748117416016,0.78349,2551.9,2551.8,0.00588051]
[1748117416205,0.78349,2551.9,2551.8,0.55499559]
[1748117417814,0.78349,2551.9,2551.8,0.55502098]
[1748117418019,2.08089,2551.9,2551.8,0.55502098]
[1748117419322,3.12950375,2552.0,2551.9,0.78349]
[1748117419513,3.12950375,2552.0,2551.9,1.99129006]
[1748117419714,3.12950375,2552.0,2551.9,3.31799006]
[1748117419914,4.42690375,2552.0,2551.9,3.31799006]
[1748117420423,2.08087,2552.0,2551.9,3.31799006]
[1748117421023,2.08087,2552.0,2551.9,2.53450006]
[1748117424011,2.08087,2552.0,2551.9,1.20780006]
[1748117424724,2.08087,2552.0,2551.9,1.20807226]
[1748117425323,4.42690375,2552.0,2551.9,1.20807226]
[1748117426420,4.42690375,2552.0,2551.9,0.6587]
[1748117426621,2.08087,2552.0,2551.9,1.20805566]
[1748117428127,2.08087,2552.0,2551.9,2.59355566]
[1748117428329,2.08087,2552.0,2551.9,2.59353077]
[1748117429428,2.08087,2552.0,2551.9,1.20803077]
[1748117430029,2.08087,2552.0,2551.9,1.20810013]
[1748117430328,2.08087,2552.0,2551.9,0.54940013]
[1748117431426,4.42690375,2552.0,2551.9,0.54940013]
[1748117431735,0.78349,2551.9,2551.8,0.00588051]
[1748117432033,1.3582,2551.9,2551.8,2.74528544]
[1748117432235,2.34603375,2552.0,2551.8,1.96176544]
[1748117432436,2.34603375,2552.0,2551.9,1.96098493]
[1748117432940,0.78348,2552.0,2551.9,1.96094717]
[1748117433541,0.78348,2552.0,2551.9,1.96100853]
[1748117435443,0.78348,2552.0,2551.9,1.96118537]
[1748117437038,3.12951375,2552.0,2551.9,1.96118537]
[1748117437240,4.46411375,2552.0,2551.9,1.96131366]
[1748117437939,3.12951375,2552.0,2551.9,1.96131366]
[1748117438848,3.12951375,2552.0,2551.9,2.65879142]
[1748117440750,3.12951375,2552.0,2551.9,3.44241573]
[1748117441949,3.12951375,2552.0,2551.9,2.89239]
[1748117442150,3.12951375,2552.0,2551.9,3.44248322]
[1748117442551,2.34603375,2552.0,2551.9,3.44249916]
[1748117442948,3.12949375,2552.0,2551.9,3.44249916]
[1748117444149,3.12949375,2552.0,2551.9,2.65900916]
[1748117444351,3.12949375,2552.0,2551.9,0.55019631]
[1748117444544,4.52439375,2552.0,2551.9,0.55019631]
[1748117445147,2.17836,2552.0,2551.9,0.55019631]
[1748117445549,2.25385626,2552.0,2551.9,0.55019631]
[1748117445948,0.78349,2551.9,2551.8,0.00588051]
[1748117446249,2.10899,2551.9,2551.8,0.55618034]
[1748117446443,2.10899,2551.9,2551.8,0.00588051]
[1748117447854,4.4585558,2551.9,2551.8,0.00588051]
[1748117448050,0.78364,2551.4,2551.3,0.72812071]
[1748117448462,3.2078,2551.6,2551.4,0.78363]
[1748117448652,1.3132,2551.5,2551.4,0.78363]
[1748117449453,2.09683,2551.5,2551.3,2.08096]
[1748117450055,0.78364,2551.4,2551.3,2.08096]
[1748117450258,1.3132,2551.4,2551.3,2.08096]
[1748117450560,1.3132,2551.4,2551.3,2.62921956]
[1748117451355,2.09684,2551.4,2551.3,2.62921956]
[1748117452150,2.09684,2551.4,2551.3,1.84555956]
[1748117453055,2.09684,2551.4,2551.3,1.8456625]
[1748117458459,2.09684,2551.4,2551.3,1.84547352]
[1748117458653,2.09684,2551.4,2551.3,2.62914352]
[1748117461966,1.3132,2551.4,2551.3,2.62913491]
[1748117462459,0.78362,2551.5,2551.3,1.84546491]
[1748117462653,3.5561,2551.6,2551.5,0.78361]
[1748117462853,3.5561,2551.6,2551.5,1.33177491]
[1748117463053,3.55608,2551.6,2551.5,1.98507491]
[1748117463261,2.17698,2551.6,2551.5,1.98507491]
[1748117463661,2.17698,2551.6,2551.5,0.54818209]
[1748117463855,2.86598,2551.6,2551.5,0.54818209]
[1748117465368,0.78364,2551.4,2551.3,0.78365]
[1748117465558,0.78364,2551.4,2551.3,1.33193816]
[1748117465759,2.16763,2551.5,2551.4,0.78364]
[1748117465960,2.16763,2551.5,2551.4,1.33192816]
[1748117466466,2.16763,2551.5,2551.4,0.54828816]
[1748117467261,2.16763,2551.5,2551.4,0.54831897]
[1748117467460,2.16763,2551.5,2551.4,0.78364]
[1748117467667,1.35417447,2551.4,2551.3,1.2942]
[1748117467969,2.66977447,2551.4,2551.3,1.2942]
[1748117468567,2.09924,2551.4,2551.3,1.2942]
[1748117468764,2.09924,2551.4,2551.3,0.72366553]
[1748117469268,2.09924,2551.4,2551.3,1.50733553]
[1748117469771,1.3156,2551.4,2551.3,1.50733553]
[1748117470774,2.09924,2551.4,2551.3,1.50733553]
[1748117471965,1.3156,2551.4,2551.2,0.78369]
[1748117472271,2.07,2551.3,2551.2,0.78369]
[1748117472472,2.07,2551.3,2551.2,1.43679]
[1748117473071,1.3651,2551.3,2551.2,1.43679]
[1748117475476,1.3651,2551.3,2551.2,2.84679]
[1748117476471,1.3651,2551.3,2551.2,1.43679]
[1748117477677,2.14877,2551.3,2551.2,1.43679]
[1748117477876,1.3651,2551.3,2551.2,1.43679]
[1748117478678,1.3651,2551.3,2551.2,2.15327802]
[1748117479074,2.14877,2551.3,2551.2,2.15327802]
[1748117480377,1.3651,2551.3,2551.2,2.15327802]
[1748117484281,2.3495658,2551.5,2551.4,0.78364]
[1748117485387,4.4458658,2551.6,2551.5,0.78361]
[1748117485687,4.4458658,2551.6,2551.5,1.35057388]